Workbook

Sheet 1. Export P&L to Sheets
A1: Footprint Farm, LLC
A2: Profit and Loss
A3: January 1 - November 20, 2019
A5: Net income --> | B5: =B93 -> 42068.88
B7: 2019
A8: Income
A9: 4000 Income - Product Sales
A10: 4102 CSA Sales | B10: 47922.05
A11: 4104 Wholesale Produce Sales | B11: 58378.32
A12: 4106 Farmers Market Produce Sales | B12: 37166.17
A13: 4204 CSA Eggs | B13: =3748.43 -> 3748.43
A14: 4206 FM Eggs | B14: =1151 -> 1151
A15: 4302 Pork Sales | B15: 4255
A16: 4304 Stew Hens | B16: =912 -> 912
A17: 4702 Merchandise Sales | B17: =155.65 -> 155.65
A18: 4504 Farm Tours/Special Event | B18: =925 -> 925
A19: 4506 Greenhouse Rental | B19: =321 -> 321
A20: 4508 CSA Add-ons | B20: 10699.91
A21: 4600 Miscellaneous Income | B21: =218.4 -> 218.4
A22: Total Income | B22: =SUM(B10:B21) -> 165852.93
A23: Cost of Goods Sold
A24: 5005 CSA Add-on Purchases | B24: =8973.53 -> 8973.53
A25: Total Cost of Goods Sold | B25: =B24 -> 8973.53
A26: Gross Profit | B26: =(B22)-(B25) -> 156879.4
A27: Expenses
A28: 6102 Seedling Production | B28: =2142.52 -> 2142.52
A29: 6104 Seeds | B29: =3616.97 -> 3616.97
A30: 6106 Soil Amendments | B30: 3562
A31: 6110 Crop Supplies | B31: =2459.17 -> 2459.17
A32: 6112 Crop Equipment | B32: =2283.09 -> 2283.09
A33: 6114 Produce Packaging | B33: =2436.07 -> 2436.07
A34: 6118 Pest/Disease Control | B34: =784.71 -> 784.71
A35: 6210 Chicken Expenses | B35: =59.11 -> 59.11
A36: 6212 Chicks and Pullets | B36: =1083 -> 1083
A37: 6214 Chicken Equipment | B37: =921.62 -> 921.62
A38: 6216 Chicken Feed | B38: 1195
A39: 6222 Piglets | B39: =770 -> 770
A40: 6224 Pig Equipment | B40: =11.76 -> 11.76
A41: 6226 Pig Feed | B41: =3458.47 -> 3458.47
A42: 6300 CSA Expenses | B42: 1600
A43: 6902 Wages | B43: 33310
A44: 6904 Payroll Taxes | B44: =1568.66+1064 -> 2632.66
A45: 6906 Payroll Subscription | B45: =219.42 -> 219.42
A46: 7112 Electric-668 Tatro | B46: 2179
A47: 7114 Electric-760 Tatro | B47: =336.39 -> 336.39
A48: 7120 Trash and Disposal Services | B48: =532.98 -> 532.98
A49: 7122 Propane | B49: 2043
A50: 7124 Internet | B50: 862
A51: 7128 Plowing | B51: =275 -> 275
A52: 7202 R&M Buildings | B52: 4227.48
A53: 7204 R&M Equipment | B53: 4862.54
A54: 7206 R&M Tractor | B54: =1175.54 -> 1175.54
A55: 7208 R&M Truck | B55: =33.98 -> 33.98
A56: 7212 R&M Animal Housing | B56: =205.07 -> 205.07
A57: 7214 R&M Construction & Tools | B57: =382.55 -> 382.55
A58: 7218 Cleaning Supplies | B58: 277.22
A59: R&M Van | B59: =59.06 -> 59.06
A60: 7252 Fuel - Tractor | B60: =156.37 -> 156.37
A61: 7254 Fuel - Gasoline | B61: 1288.25
A62: 7256 Fuel - BCS and small motor | B62: 143.48
A63: 7258 Fuel - Propane | B63: =18.18 -> 18.18
A64: 7402 Advertising | B64: =162.7 -> 162.7
A65: 7404 Website Costs | B65: =472.48 -> 472.48
A66: 7406 Farmers Market Supplies | B66: =283.8 -> 283.8
A67: 7502 Accounting | B67: =794.47 -> 794.47
A68: 7506 Subcontractors | B68: =180 -> 180
A69: 7508 Farm Sitting | B69: =410 -> 410
A70: 7602 Workmans Comp | B70: =323 -> 323
A71: 7604 Liability | B71: 1792.83
A72: 7606 Auto | B72: =783.8 -> 783.8
A73: 7800 Office Supplies | B73: 902
A74: 7802 Printing and Copying | B74: =216.27 -> 216.27
A75: 7806 Postage and Delivery | B75: =89.2 -> 89.2
A76: 7808 Dues and Subscriptions | B76: 700
A77: 7810 Business Licenses and Permits | B77: =294.83 -> 294.83
A78: 7820 Labor Expenses | B78: =62.99 -> 62.99
A79: 7824 Professional Development | B79: 936
A80: 7892 Online Payment Fees | B80: 707.75
A81: 7932 Interest Expense - VACC | B81: 16547.67
A82: 7934 Interest Expense - Van | B82: 1273.71
A83: 7942 VT Partnership Tax Paid | B83: =250 -> 250
A84: 7944 Property Tax Paid | B84: =5339.73 -> 5339.73
A85: Reimbursements | B85: =44.66 -> 44.66
A86: Unapplied Cash Bill Payment Expense | B86: =0 -> 0
A87: Total Expenses | B87: =SUM(B28:B86) -> 114171.55
A88: Net Operating Income | B88: =(B26)-(B87) -> 42707.85
A89: Other Expenses
A90: 9999 Ask My Accountant | B90: 638.97
A91: Total Other Expenses | B91: =B90 -> 638.97
A92: Net Other Income | B92: =(0)-(B91) -> -638.97
A93: Net Income | B93: =(B88)+(B92) -> 42068.88
A97: Wednesday, Nov 20, 2019 11:24:51 AM GMT-8 - Cash Basis

Sheet 2. Pull numbers out to 12 month
A1: Footprint Farm, LLC
A2: Cash Flow
A3: 2020
A5: Net income --> | B5: =B93 -> 42068.88
B7: 2019 | C7: Jan | D7: Feb | E7: Mar | F7: Apr | G7: May | H7: Jun | I7: Jul | J7: Aug | K7: Sep | L7: Oct | M7: Nov | N7: Dec | O7: Total
A8: Income
A9: 4000 Income - Product Sales
A10: 4102 CSA Sales | B10: 47922.05 | C10: =B10/12 -> 3993.504167 | D10: 3993.504167 | E10: 3993.504167 | F10: 3993.504167 | G10: 3993.504167 | H10: 3993.504167 | I10: 3993.504167 | J10: 3993.504167 | K10: 3993.504167 | L10: 3993.504167 | M10: 3993.504167 | N10: 3993.504167 | O10: =sum(C10:N10) -> 47922.05
A11: 4104 Wholesale Produce Sales | B11: 58378.32 | C11: 4864.86 | D11: 4864.86 | E11: 4864.86 | F11: 4864.86 | G11: 4864.86 | H11: 4864.86 | I11: 4864.86 | J11: 4864.86 | K11: 4864.86 | L11: 4864.86 | M11: 4864.86 | N11: 4864.86 | O11: 58378.32
A12: 4106 Farmers Market Produce Sales | B12: 37166.17 | C12: 3097.180833 | D12: 3097.180833 | E12: 3097.180833 | F12: 3097.180833 | G12: 3097.180833 | H12: 3097.180833 | I12: 3097.180833 | J12: 3097.180833 | K12: 3097.180833 | L12: 3097.180833 | M12: 3097.180833 | N12: 3097.180833 | O12: 37166.17
A13: 4204 CSA Eggs | B13: =3748.43 -> 3748.43 | C13: 312.3691667 | D13: 312.3691667 | E13: 312.3691667 | F13: 312.3691667 | G13: 312.3691667 | H13: 312.3691667 | I13: 312.3691667 | J13: 312.3691667 | K13: 312.3691667 | L13: 312.3691667 | M13: 312.3691667 | N13: 312.3691667 | O13: 3748.43
A14: 4206 FM Eggs | B14: =1151 -> 1151 | C14: 95.91666667 | D14: 95.91666667 | E14: 95.91666667 | F14: 95.91666667 | G14: 95.91666667 | H14: 95.91666667 | I14: 95.91666667 | J14: 95.91666667 | K14: 95.91666667 | L14: 95.91666667 | M14: 95.91666667 | N14: 95.91666667 | O14: 1151
A15: 4302 Pork Sales | B15: 4255 | C15: 354.5833333 | D15: 354.5833333 | E15: 354.5833333 | F15: 354.5833333 | G15: 354.5833333 | H15: 354.5833333 | I15: 354.5833333 | J15: 354.5833333 | K15: 354.5833333 | L15: 354.5833333 | M15: 354.5833333 | N15: 354.5833333 | O15: 4255
A16: 4304 Stew Hens | B16: =912 -> 912 | C16: 76 | D16: 76 | E16: 76 | F16: 76 | G16: 76 | H16: 76 | I16: 76 | J16: 76 | K16: 76 | L16: 76 | M16: 76 | N16: 76 | O16: 912
A17: 4702 Merchandise Sales | B17: =155.65 -> 155.65 | C17: 12.97083333 | D17: 12.97083333 | E17: 12.97083333 | F17: 12.97083333 | G17: 12.97083333 | H17: 12.97083333 | I17: 12.97083333 | J17: 12.97083333 | K17: 12.97083333 | L17: 12.97083333 | M17: 12.97083333 | N17: 12.97083333 | O17: 155.65
A18: 4504 Farm Tours/Special Event | B18: =925 -> 925 | C18: 77.08333333 | D18: 77.08333333 | E18: 77.08333333 | F18: 77.08333333 | G18: 77.08333333 | H18: 77.08333333 | I18: 77.08333333 | J18: 77.08333333 | K18: 77.08333333 | L18: 77.08333333 | M18: 77.08333333 | N18: 77.08333333 | O18: 925
A19: 4506 Greenhouse Rental | B19: =321 -> 321 | C19: 26.75 | D19: 26.75 | E19: 26.75 | F19: 26.75 | G19: 26.75 | H19: 26.75 | I19: 26.75 | J19: 26.75 | K19: 26.75 | L19: 26.75 | M19: 26.75 | N19: 26.75 | O19: 321
A20: 4508 CSA Add-ons | B20: 10699.91 | C20: 891.6591667 | D20: 891.6591667 | E20: 891.6591667 | F20: 891.6591667 | G20: 891.6591667 | H20: 891.6591667 | I20: 891.6591667 | J20: 891.6591667 | K20: 891.6591667 | L20: 891.6591667 | M20: 891.6591667 | N20: 891.6591667 | O20: 10699.91
A21: 4600 Miscellaneous Income | B21: =218.4 -> 218.4 | C21: 18.2 | D21: 18.2 | E21: 18.2 | F21: 18.2 | G21: 18.2 | H21: 18.2 | I21: 18.2 | J21: 18.2 | K21: 18.2 | L21: 18.2 | M21: 18.2 | N21: 18.2 | O21: 218.4
A22: Total Income | B22: =SUM(B10:B21) -> 165852.93 | C22: 13821.0775 | D22: 13821.0775 | E22: 13821.0775 | F22: 13821.0775 | G22: 13821.0775 | H22: 13821.0775 | I22: 13821.0775 | J22: 13821.0775 | K22: 13821.0775 | L22: 13821.0775 | M22: 13821.0775 | N22: 13821.0775 | O22: 165852.93
A23: Cost of Goods Sold
A24: 5005 CSA Add-on Purchases | B24: =8973.53 -> 8973.53 | C24: =B24/12 -> 747.7941667 | D24: 747.7941667 | E24: 747.7941667 | F24: 747.7941667 | G24: 747.7941667 | H24: 747.7941667 | I24: 747.7941667 | J24: 747.7941667 | K24: 747.7941667 | L24: 747.7941667 | M24: 747.7941667 | N24: 747.7941667 | O24: =sum(C24:N24) -> 8973.53
A25: Total Cost of Goods Sold | B25: =B24 -> 8973.53 | C25: 747.7941667 | D25: 747.7941667 | E25: 747.7941667 | F25: 747.7941667 | G25: 747.7941667 | H25: 747.7941667 | I25: 747.7941667 | J25: 747.7941667 | K25: 747.7941667 | L25: 747.7941667 | M25: 747.7941667 | N25: 747.7941667 | O25: 8973.53
A26: Gross Profit | B26: =(B22)-(B25) -> 156879.4 | C26: 13073.28333 | D26: 13073.28333 | E26: 13073.28333 | F26: 13073.28333 | G26: 13073.28333 | H26: 13073.28333 | I26: 13073.28333 | J26: 13073.28333 | K26: 13073.28333 | L26: 13073.28333 | M26: 13073.28333 | N26: 13073.28333 | O26: 156879.4
A27: Expenses | C27: 0 | D27: 0 | E27: 0 | F27: 0 | G27: 0 | H27: 0 | I27: 0 | J27: 0 | K27: 0 | L27: 0 | M27: 0 | N27: 0 | O27: 0
A28: 6102 Seedling Production | B28: =2142.52 -> 2142.52 | C28: 178.5433333 | D28: 178.5433333 | E28: 178.5433333 | F28: 178.5433333 | G28: 178.5433333 | H28: 178.5433333 | I28: 178.5433333 | J28: 178.5433333 | K28: 178.5433333 | L28: 178.5433333 | M28: 178.5433333 | N28: 178.5433333 | O28: 2142.52
A29: 6104 Seeds | B29: =3616.97 -> 3616.97 | C29: 301.4141667 | D29: 301.4141667 | E29: 301.4141667 | F29: 301.4141667 | G29: 301.4141667 | H29: 301.4141667 | I29: 301.4141667 | J29: 301.4141667 | K29: 301.4141667 | L29: 301.4141667 | M29: 301.4141667 | N29: 301.4141667 | O29: 3616.97
A30: 6106 Soil Amendments | B30: 3562 | C30: 296.8333333 | D30: 296.8333333 | E30: 296.8333333 | F30: 296.8333333 | G30: 296.8333333 | H30: 296.8333333 | I30: 296.8333333 | J30: 296.8333333 | K30: 296.8333333 | L30: 296.8333333 | M30: 296.8333333 | N30: 296.8333333 | O30: 3562
A31: 6110 Crop Supplies | B31: =2459.17 -> 2459.17 | C31: 204.9308333 | D31: 204.9308333 | E31: 204.9308333 | F31: 204.9308333 | G31: 204.9308333 | H31: 204.9308333 | I31: 204.9308333 | J31: 204.9308333 | K31: 204.9308333 | L31: 204.9308333 | M31: 204.9308333 | N31: 204.9308333 | O31: 2459.17
A32: 6112 Crop Equipment | B32: =2283.09 -> 2283.09 | C32: 190.2575 | D32: 190.2575 | E32: 190.2575 | F32: 190.2575 | G32: 190.2575 | H32: 190.2575 | I32: 190.2575 | J32: 190.2575 | K32: 190.2575 | L32: 190.2575 | M32: 190.2575 | N32: 190.2575 | O32: 2283.09
A33: 6114 Produce Packaging | B33: =2436.07 -> 2436.07 | C33: 203.0058333 | D33: 203.0058333 | E33: 203.0058333 | F33: 203.0058333 | G33: 203.0058333 | H33: 203.0058333 | I33: 203.0058333 | J33: 203.0058333 | K33: 203.0058333 | L33: 203.0058333 | M33: 203.0058333 | N33: 203.0058333 | O33: 2436.07
A34: 6118 Pest/Disease Control | B34: =784.71 -> 784.71 | C34: 65.3925 | D34: 65.3925 | E34: 65.3925 | F34: 65.3925 | G34: 65.3925 | H34: 65.3925 | I34: 65.3925 | J34: 65.3925 | K34: 65.3925 | L34: 65.3925 | M34: 65.3925 | N34: 65.3925 | O34: 784.71
A35: 6210 Chicken Expenses | B35: =59.11 -> 59.11 | C35: 4.925833333 | D35: 4.925833333 | E35: 4.925833333 | F35: 4.925833333 | G35: 4.925833333 | H35: 4.925833333 | I35: 4.925833333 | J35: 4.925833333 | K35: 4.925833333 | L35: 4.925833333 | M35: 4.925833333 | N35: 4.925833333 | O35: 59.11
A36: 6212 Chicks and Pullets | B36: =1083 -> 1083 | C36: 90.25 | D36: 90.25 | E36: 90.25 | F36: 90.25 | G36: 90.25 | H36: 90.25 | I36: 90.25 | J36: 90.25 | K36: 90.25 | L36: 90.25 | M36: 90.25 | N36: 90.25 | O36: 1083
A37: 6214 Chicken Equipment | B37: =921.62 -> 921.62 | C37: 76.80166667 | D37: 76.80166667 | E37: 76.80166667 | F37: 76.80166667 | G37: 76.80166667 | H37: 76.80166667 | I37: 76.80166667 | J37: 76.80166667 | K37: 76.80166667 | L37: 76.80166667 | M37: 76.80166667 | N37: 76.80166667 | O37: 921.62
A38: 6216 Chicken Feed | B38: 1195 | C38: 99.58333333 | D38: 99.58333333 | E38: 99.58333333 | F38: 99.58333333 | G38: 99.58333333 | H38: 99.58333333 | I38: 99.58333333 | J38: 99.58333333 | K38: 99.58333333 | L38: 99.58333333 | M38: 99.58333333 | N38: 99.58333333 | O38: 1195
A39: 6222 Piglets | B39: =770 -> 770 | C39: 64.16666667 | D39: 64.16666667 | E39: 64.16666667 | F39: 64.16666667 | G39: 64.16666667 | H39: 64.16666667 | I39: 64.16666667 | J39: 64.16666667 | K39: 64.16666667 | L39: 64.16666667 | M39: 64.16666667 | N39: 64.16666667 | O39: 770
A40: 6224 Pig Equipment | B40: =11.76 -> 11.76 | C40: 0.98 | D40: 0.98 | E40: 0.98 | F40: 0.98 | G40: 0.98 | H40: 0.98 | I40: 0.98 | J40: 0.98 | K40: 0.98 | L40: 0.98 | M40: 0.98 | N40: 0.98 | O40: 11.76
A41: 6226 Pig Feed | B41: =3458.47 -> 3458.47 | C41: 288.2058333 | D41: 288.2058333 | E41: 288.2058333 | F41: 288.2058333 | G41: 288.2058333 | H41: 288.2058333 | I41: 288.2058333 | J41: 288.2058333 | K41: 288.2058333 | L41: 288.2058333 | M41: 288.2058333 | N41: 288.2058333 | O41: 3458.47
A42: 6300 CSA Expenses | B42: 1600 | C42: 133.3333333 | D42: 133.3333333 | E42: 133.3333333 | F42: 133.3333333 | G42: 133.3333333 | H42: 133.3333333 | I42: 133.3333333 | J42: 133.3333333 | K42: 133.3333333 | L42: 133.3333333 | M42: 133.3333333 | N42: 133.3333333 | O42: 1600
A43: 6902 Wages | B43: 33310 | C43: 2775.833333 | D43: 2775.833333 | E43: 2775.833333 | F43: 2775.833333 | G43: 2775.833333 | H43: 2775.833333 | I43: 2775.833333 | J43: 2775.833333 | K43: 2775.833333 | L43: 2775.833333 | M43: 2775.833333 | N43: 2775.833333 | O43: 33310
A44: 6904 Payroll Taxes | B44: =1568.66+1064 -> 2632.66 | C44: 219.3883333 | D44: 219.3883333 | E44: 219.3883333 | F44: 219.3883333 | G44: 219.3883333 | H44: 219.3883333 | I44: 219.3883333 | J44: 219.3883333 | K44: 219.3883333 | L44: 219.3883333 | M44: 219.3883333 | N44: 219.3883333 | O44: 2632.66
A45: 6906 Payroll Subscription | B45: =219.42 -> 219.42 | C45: 18.285 | D45: 18.285 | E45: 18.285 | F45: 18.285 | G45: 18.285 | H45: 18.285 | I45: 18.285 | J45: 18.285 | K45: 18.285 | L45: 18.285 | M45: 18.285 | N45: 18.285 | O45: 219.42
A46: 7112 Electric-668 Tatro | B46: 2179 | C46: 181.5833333 | D46: 181.5833333 | E46: 181.5833333 | F46: 181.5833333 | G46: 181.5833333 | H46: 181.5833333 | I46: 181.5833333 | J46: 181.5833333 | K46: 181.5833333 | L46: 181.5833333 | M46: 181.5833333 | N46: 181.5833333 | O46: 2179
A47: 7114 Electric-760 Tatro | B47: =336.39 -> 336.39 | C47: 28.0325 | D47: 28.0325 | E47: 28.0325 | F47: 28.0325 | G47: 28.0325 | H47: 28.0325 | I47: 28.0325 | J47: 28.0325 | K47: 28.0325 | L47: 28.0325 | M47: 28.0325 | N47: 28.0325 | O47: 336.39
A48: 7120 Trash and Disposal Services | B48: =532.98 -> 532.98 | C48: 44.415 | D48: 44.415 | E48: 44.415 | F48: 44.415 | G48: 44.415 | H48: 44.415 | I48: 44.415 | J48: 44.415 | K48: 44.415 | L48: 44.415 | M48: 44.415 | N48: 44.415 | O48: 532.98
A49: 7122 Propane | B49: 2043 | C49: 170.25 | D49: 170.25 | E49: 170.25 | F49: 170.25 | G49: 170.25 | H49: 170.25 | I49: 170.25 | J49: 170.25 | K49: 170.25 | L49: 170.25 | M49: 170.25 | N49: 170.25 | O49: 2043
A50: 7124 Internet | B50: 862 | C50: 71.83333333 | D50: 71.83333333 | E50: 71.83333333 | F50: 71.83333333 | G50: 71.83333333 | H50: 71.83333333 | I50: 71.83333333 | J50: 71.83333333 | K50: 71.83333333 | L50: 71.83333333 | M50: 71.83333333 | N50: 71.83333333 | O50: 862
A51: 7128 Plowing | B51: =275 -> 275 | C51: 22.91666667 | D51: 22.91666667 | E51: 22.91666667 | F51: 22.91666667 | G51: 22.91666667 | H51: 22.91666667 | I51: 22.91666667 | J51: 22.91666667 | K51: 22.91666667 | L51: 22.91666667 | M51: 22.91666667 | N51: 22.91666667 | O51: 275
A52: 7202 R&M Buildings | B52: 4227.48 | C52: 352.29 | D52: 352.29 | E52: 352.29 | F52: 352.29 | G52: 352.29 | H52: 352.29 | I52: 352.29 | J52: 352.29 | K52: 352.29 | L52: 352.29 | M52: 352.29 | N52: 352.29 | O52: 4227.48
A53: 7204 R&M Equipment | B53: 4862.54 | C53: 405.2116667 | D53: 405.2116667 | E53: 405.2116667 | F53: 405.2116667 | G53: 405.2116667 | H53: 405.2116667 | I53: 405.2116667 | J53: 405.2116667 | K53: 405.2116667 | L53: 405.2116667 | M53: 405.2116667 | N53: 405.2116667 | O53: 4862.54
A54: 7206 R&M Tractor | B54: =1175.54 -> 1175.54 | C54: 97.96166667 | D54: 97.96166667 | E54: 97.96166667 | F54: 97.96166667 | G54: 97.96166667 | H54: 97.96166667 | I54: 97.96166667 | J54: 97.96166667 | K54: 97.96166667 | L54: 97.96166667 | M54: 97.96166667 | N54: 97.96166667 | O54: 1175.54
A55: 7208 R&M Truck | B55: =33.98 -> 33.98 | C55: 2.831666667 | D55: 2.831666667 | E55: 2.831666667 | F55: 2.831666667 | G55: 2.831666667 | H55: 2.831666667 | I55: 2.831666667 | J55: 2.831666667 | K55: 2.831666667 | L55: 2.831666667 | M55: 2.831666667 | N55: 2.831666667 | O55: 33.98
A56: 7212 R&M Animal Housing | B56: =205.07 -> 205.07 | C56: 17.08916667 | D56: 17.08916667 | E56: 17.08916667 | F56: 17.08916667 | G56: 17.08916667 | H56: 17.08916667 | I56: 17.08916667 | J56: 17.08916667 | K56: 17.08916667 | L56: 17.08916667 | M56: 17.08916667 | N56: 17.08916667 | O56: 205.07
A57: 7214 R&M Construction & Tools | B57: =382.55 -> 382.55 | C57: 31.87916667 | D57: 31.87916667 | E57: 31.87916667 | F57: 31.87916667 | G57: 31.87916667 | H57: 31.87916667 | I57: 31.87916667 | J57: 31.87916667 | K57: 31.87916667 | L57: 31.87916667 | M57: 31.87916667 | N57: 31.87916667 | O57: 382.55
A58: 7218 Cleaning Supplies | B58: 277.22 | C58: 23.10166667 | D58: 23.10166667 | E58: 23.10166667 | F58: 23.10166667 | G58: 23.10166667 | H58: 23.10166667 | I58: 23.10166667 | J58: 23.10166667 | K58: 23.10166667 | L58: 23.10166667 | M58: 23.10166667 | N58: 23.10166667 | O58: 277.22
A59: R&M Van | B59: =59.06 -> 59.06 | C59: 4.921666667 | D59: 4.921666667 | E59: 4.921666667 | F59: 4.921666667 | G59: 4.921666667 | H59: 4.921666667 | I59: 4.921666667 | J59: 4.921666667 | K59: 4.921666667 | L59: 4.921666667 | M59: 4.921666667 | N59: 4.921666667 | O59: 59.06
A60: 7252 Fuel - Tractor | B60: =156.37 -> 156.37 | C60: 13.03083333 | D60: 13.03083333 | E60: 13.03083333 | F60: 13.03083333 | G60: 13.03083333 | H60: 13.03083333 | I60: 13.03083333 | J60: 13.03083333 | K60: 13.03083333 | L60: 13.03083333 | M60: 13.03083333 | N60: 13.03083333 | O60: 156.37
A61: 7254 Fuel - Gasoline | B61: 1288.25 | C61: 107.3541667 | D61: 107.3541667 | E61: 107.3541667 | F61: 107.3541667 | G61: 107.3541667 | H61: 107.3541667 | I61: 107.3541667 | J61: 107.3541667 | K61: 107.3541667 | L61: 107.3541667 | M61: 107.3541667 | N61: 107.3541667 | O61: 1288.25
A62: 7256 Fuel - BCS and small motor | B62: 143.48 | C62: 11.95666667 | D62: 11.95666667 | E62: 11.95666667 | F62: 11.95666667 | G62: 11.95666667 | H62: 11.95666667 | I62: 11.95666667 | J62: 11.95666667 | K62: 11.95666667 | L62: 11.95666667 | M62: 11.95666667 | N62: 11.95666667 | O62: 143.48
A63: 7258 Fuel - Propane | B63: =18.18 -> 18.18 | C63: 1.515 | D63: 1.515 | E63: 1.515 | F63: 1.515 | G63: 1.515 | H63: 1.515 | I63: 1.515 | J63: 1.515 | K63: 1.515 | L63: 1.515 | M63: 1.515 | N63: 1.515 | O63: 18.18
A64: 7402 Advertising | B64: =162.7 -> 162.7 | C64: 13.55833333 | D64: 13.55833333 | E64: 13.55833333 | F64: 13.55833333 | G64: 13.55833333 | H64: 13.55833333 | I64: 13.55833333 | J64: 13.55833333 | K64: 13.55833333 | L64: 13.55833333 | M64: 13.55833333 | N64: 13.55833333 | O64: 162.7
A65: 7404 Website Costs | B65: =472.48 -> 472.48 | C65: 39.37333333 | D65: 39.37333333 | E65: 39.37333333 | F65: 39.37333333 | G65: 39.37333333 | H65: 39.37333333 | I65: 39.37333333 | J65: 39.37333333 | K65: 39.37333333 | L65: 39.37333333 | M65: 39.37333333 | N65: 39.37333333 | O65: 472.48
A66: 7406 Farmers Market Supplies | B66: =283.8 -> 283.8 | C66: 23.65 | D66: 23.65 | E66: 23.65 | F66: 23.65 | G66: 23.65 | H66: 23.65 | I66: 23.65 | J66: 23.65 | K66: 23.65 | L66: 23.65 | M66: 23.65 | N66: 23.65 | O66: 283.8
A67: 7502 Accounting | B67: =794.47 -> 794.47 | C67: 66.20583333 | D67: 66.20583333 | E67: 66.20583333 | F67: 66.20583333 | G67: 66.20583333 | H67: 66.20583333 | I67: 66.20583333 | J67: 66.20583333 | K67: 66.20583333 | L67: 66.20583333 | M67: 66.20583333 | N67: 66.20583333 | O67: 794.47
A68: 7506 Subcontractors | B68: =180 -> 180 | C68: 15 | D68: 15 | E68: 15 | F68: 15 | G68: 15 | H68: 15 | I68: 15 | J68: 15 | K68: 15 | L68: 15 | M68: 15 | N68: 15 | O68: 180
A69: 7508 Farm Sitting | B69: =410 -> 410 | C69: 34.16666667 | D69: 34.16666667 | E69: 34.16666667 | F69: 34.16666667 | G69: 34.16666667 | H69: 34.16666667 | I69: 34.16666667 | J69: 34.16666667 | K69: 34.16666667 | L69: 34.16666667 | M69: 34.16666667 | N69: 34.16666667 | O69: 410
A70: 7602 Workmans Comp | B70: =323 -> 323 | C70: 26.91666667 | D70: 26.91666667 | E70: 26.91666667 | F70: 26.91666667 | G70: 26.91666667 | H70: 26.91666667 | I70: 26.91666667 | J70: 26.91666667 | K70: 26.91666667 | L70: 26.91666667 | M70: 26.91666667 | N70: 26.91666667 | O70: 323
A71: 7604 Liability | B71: 1792.83 | C71: 149.4025 | D71: 149.4025 | E71: 149.4025 | F71: 149.4025 | G71: 149.4025 | H71: 149.4025 | I71: 149.4025 | J71: 149.4025 | K71: 149.4025 | L71: 149.4025 | M71: 149.4025 | N71: 149.4025 | O71: 1792.83
A72: 7606 Auto | B72: =783.8 -> 783.8 | C72: 65.31666667 | D72: 65.31666667 | E72: 65.31666667 | F72: 65.31666667 | G72: 65.31666667 | H72: 65.31666667 | I72: 65.31666667 | J72: 65.31666667 | K72: 65.31666667 | L72: 65.31666667 | M72: 65.31666667 | N72: 65.31666667 | O72: 783.8
A73: 7800 Office Supplies | B73: 902 | C73: 75.16666667 | D73: 75.16666667 | E73: 75.16666667 | F73: 75.16666667 | G73: 75.16666667 | H73: 75.16666667 | I73: 75.16666667 | J73: 75.16666667 | K73: 75.16666667 | L73: 75.16666667 | M73: 75.16666667 | N73: 75.16666667 | O73: 902
A74: 7802 Printing and Copying | B74: =216.27 -> 216.27 | C74: 18.0225 | D74: 18.0225 | E74: 18.0225 | F74: 18.0225 | G74: 18.0225 | H74: 18.0225 | I74: 18.0225 | J74: 18.0225 | K74: 18.0225 | L74: 18.0225 | M74: 18.0225 | N74: 18.0225 | O74: 216.27
A75: 7806 Postage and Delivery | B75: =89.2 -> 89.2 | C75: 7.433333333 | D75: 7.433333333 | E75: 7.433333333 | F75: 7.433333333 | G75: 7.433333333 | H75: 7.433333333 | I75: 7.433333333 | J75: 7.433333333 | K75: 7.433333333 | L75: 7.433333333 | M75: 7.433333333 | N75: 7.433333333 | O75: 89.2
A76: 7808 Dues and Subscriptions | B76: 700 | C76: 58.33333333 | D76: 58.33333333 | E76: 58.33333333 | F76: 58.33333333 | G76: 58.33333333 | H76: 58.33333333 | I76: 58.33333333 | J76: 58.33333333 | K76: 58.33333333 | L76: 58.33333333 | M76: 58.33333333 | N76: 58.33333333 | O76: 700
A77: 7810 Business Licenses and Permits | B77: =294.83 -> 294.83 | C77: 24.56916667 | D77: 24.56916667 | E77: 24.56916667 | F77: 24.56916667 | G77: 24.56916667 | H77: 24.56916667 | I77: 24.56916667 | J77: 24.56916667 | K77: 24.56916667 | L77: 24.56916667 | M77: 24.56916667 | N77: 24.56916667 | O77: 294.83
A78: 7820 Labor Expenses | B78: =62.99 -> 62.99 | C78: 5.249166667 | D78: 5.249166667 | E78: 5.249166667 | F78: 5.249166667 | G78: 5.249166667 | H78: 5.249166667 | I78: 5.249166667 | J78: 5.249166667 | K78: 5.249166667 | L78: 5.249166667 | M78: 5.249166667 | N78: 5.249166667 | O78: 62.99
A79: 7824 Professional Development | B79: 936 | C79: 78 | D79: 78 | E79: 78 | F79: 78 | G79: 78 | H79: 78 | I79: 78 | J79: 78 | K79: 78 | L79: 78 | M79: 78 | N79: 78 | O79: 936
A80: 7892 Online Payment Fees | B80: 707.75 | C80: 58.97916667 | D80: 58.97916667 | E80: 58.97916667 | F80: 58.97916667 | G80: 58.97916667 | H80: 58.97916667 | I80: 58.97916667 | J80: 58.97916667 | K80: 58.97916667 | L80: 58.97916667 | M80: 58.97916667 | N80: 58.97916667 | O80: 707.75
A81: 7932 Interest Expense - VACC | B81: 16547.67 | C81: 1378.9725 | D81: 1378.9725 | E81: 1378.9725 | F81: 1378.9725 | G81: 1378.9725 | H81: 1378.9725 | I81: 1378.9725 | J81: 1378.9725 | K81: 1378.9725 | L81: 1378.9725 | M81: 1378.9725 | N81: 1378.9725 | O81: 16547.67
A82: 7934 Interest Expense - Van | B82: 1273.71 | C82: 106.1425 | D82: 106.1425 | E82: 106.1425 | F82: 106.1425 | G82: 106.1425 | H82: 106.1425 | I82: 106.1425 | J82: 106.1425 | K82: 106.1425 | L82: 106.1425 | M82: 106.1425 | N82: 106.1425 | O82: 1273.71
A83: 7942 VT Partnership Tax Paid | B83: =250 -> 250 | C83: 20.83333333 | D83: 20.83333333 | E83: 20.83333333 | F83: 20.83333333 | G83: 20.83333333 | H83: 20.83333333 | I83: 20.83333333 | J83: 20.83333333 | K83: 20.83333333 | L83: 20.83333333 | M83: 20.83333333 | N83: 20.83333333 | O83: 250
A84: 7944 Property Tax Paid | B84: =5339.73 -> 5339.73 | C84: 444.9775 | D84: 444.9775 | E84: 444.9775 | F84: 444.9775 | G84: 444.9775 | H84: 444.9775 | I84: 444.9775 | J84: 444.9775 | K84: 444.9775 | L84: 444.9775 | M84: 444.9775 | N84: 444.9775 | O84: 5339.73
A85: Reimbursements | B85: =44.66 -> 44.66 | C85: 3.721666667 | D85: 3.721666667 | E85: 3.721666667 | F85: 3.721666667 | G85: 3.721666667 | H85: 3.721666667 | I85: 3.721666667 | J85: 3.721666667 | K85: 3.721666667 | L85: 3.721666667 | M85: 3.721666667 | N85: 3.721666667 | O85: 44.66
A86: Unapplied Cash Bill Payment Expense | B86: =0 -> 0 | C86: 0 | D86: 0 | E86: 0 | F86: 0 | G86: 0 | H86: 0 | I86: 0 | J86: 0 | K86: 0 | L86: 0 | M86: 0 | N86: 0 | O86: 0
A87: Total Expenses | B87: =SUM(B28:B86) -> 114171.55 | C87: 9514.295833 | D87: 9514.295833 | E87: 9514.295833 | F87: 9514.295833 | G87: 9514.295833 | H87: 9514.295833 | I87: 9514.295833 | J87: 9514.295833 | K87: 9514.295833 | L87: 9514.295833 | M87: 9514.295833 | N87: 9514.295833 | O87: 114171.55
A88: Net Operating Income | B88: =(B26)-(B87) -> 42707.85 | C88: 3558.9875 | D88: 3558.9875 | E88: 3558.9875 | F88: 3558.9875 | G88: 3558.9875 | H88: 3558.9875 | I88: 3558.9875 | J88: 3558.9875 | K88: 3558.9875 | L88: 3558.9875 | M88: 3558.9875 | N88: 3558.9875 | O88: 42707.85
A89: Other Expenses | O89: 0
A90: 9999 Ask My Accountant | B90: 638.97 | O90: 0
A91: Total Other Expenses | B91: =B90 -> 638.97 | O91: 0
A92: Net Other Income | B92: =(0)-(B91) -> -638.97 | C92: 0 | D92: 0 | E92: 0 | F92: 0 | G92: 0 | H92: 0 | I92: 0 | J92: 0 | K92: 0 | L92: 0 | M92: 0 | N92: 0 | O92: 0
A93: Net Income | B93: =(B88)+(B92) -> 42068.88 | C93: 3558.9875 | D93: 3558.9875 | E93: 3558.9875 | F93: 3558.9875 | G93: 3558.9875 | H93: 3558.9875 | I93: 3558.9875 | J93: 3558.9875 | K93: 3558.9875 | L93: 3558.9875 | M93: 3558.9875 | N93: 3558.9875 | O93: 42707.85
A97: Wednesday, Nov 20, 2019 11:24:51 AM GMT-8 - Cash Basis

Sheet 3. Add in balance sheet numbers
A1: Footprint Farm, LLC
A2: Cash Flow
A3: 2020
A5: Net income --> | B5: =N96 -> 18707.85
B7: Jan | C7: Feb | D7: Mar | E7: Apr | F7: May | G7: Jun | H7: Jul | I7: Aug | J7: Sep | K7: Oct | L7: Nov | M7: Dec | N7: Total
A8: Income
A9: 4000 Income - Product Sales
A10: 4102 CSA Sales | B10: 3993.504167 | C10: 3993.504167 | D10: 3993.504167 | E10: 3993.504167 | F10: 3993.504167 | G10: 3993.504167 | H10: 3993.504167 | I10: 3993.504167 | J10: 3993.504167 | K10: 3993.504167 | L10: 3993.504167 | M10: 3993.504167 | N10: =sum(B10:M10) -> 47922.05
A11: 4104 Wholesale Produce Sales | B11: 4864.86 | C11: 4864.86 | D11: 4864.86 | E11: 4864.86 | F11: 4864.86 | G11: 4864.86 | H11: 4864.86 | I11: 4864.86 | J11: 4864.86 | K11: 4864.86 | L11: 4864.86 | M11: 4864.86 | N11: 58378.32
A12: 4106 Farmers Market Produce Sales | B12: 3097.180833 | C12: 3097.180833 | D12: 3097.180833 | E12: 3097.180833 | F12: 3097.180833 | G12: 3097.180833 | H12: 3097.180833 | I12: 3097.180833 | J12: 3097.180833 | K12: 3097.180833 | L12: 3097.180833 | M12: 3097.180833 | N12: 37166.17
A13: 4204 CSA Eggs | B13: 312.3691667 | C13: 312.3691667 | D13: 312.3691667 | E13: 312.3691667 | F13: 312.3691667 | G13: 312.3691667 | H13: 312.3691667 | I13: 312.3691667 | J13: 312.3691667 | K13: 312.3691667 | L13: 312.3691667 | M13: 312.3691667 | N13: 3748.43
A14: 4206 FM Eggs | B14: 95.91666667 | C14: 95.91666667 | D14: 95.91666667 | E14: 95.91666667 | F14: 95.91666667 | G14: 95.91666667 | H14: 95.91666667 | I14: 95.91666667 | J14: 95.91666667 | K14: 95.91666667 | L14: 95.91666667 | M14: 95.91666667 | N14: 1151
A15: 4302 Pork Sales | B15: 354.5833333 | C15: 354.5833333 | D15: 354.5833333 | E15: 354.5833333 | F15: 354.5833333 | G15: 354.5833333 | H15: 354.5833333 | I15: 354.5833333 | J15: 354.5833333 | K15: 354.5833333 | L15: 354.5833333 | M15: 354.5833333 | N15: 4255
A16: 4304 Stew Hens | B16: 76 | C16: 76 | D16: 76 | E16: 76 | F16: 76 | G16: 76 | H16: 76 | I16: 76 | J16: 76 | K16: 76 | L16: 76 | M16: 76 | N16: 912
A17: 4702 Merchandise Sales | B17: 12.97083333 | C17: 12.97083333 | D17: 12.97083333 | E17: 12.97083333 | F17: 12.97083333 | G17: 12.97083333 | H17: 12.97083333 | I17: 12.97083333 | J17: 12.97083333 | K17: 12.97083333 | L17: 12.97083333 | M17: 12.97083333 | N17: 155.65
A18: 4504 Farm Tours/Special Event | B18: 77.08333333 | C18: 77.08333333 | D18: 77.08333333 | E18: 77.08333333 | F18: 77.08333333 | G18: 77.08333333 | H18: 77.08333333 | I18: 77.08333333 | J18: 77.08333333 | K18: 77.08333333 | L18: 77.08333333 | M18: 77.08333333 | N18: 925
A19: 4506 Greenhouse Rental | B19: 26.75 | C19: 26.75 | D19: 26.75 | E19: 26.75 | F19: 26.75 | G19: 26.75 | H19: 26.75 | I19: 26.75 | J19: 26.75 | K19: 26.75 | L19: 26.75 | M19: 26.75 | N19: 321
A20: 4508 CSA Add-ons | B20: 891.6591667 | C20: 891.6591667 | D20: 891.6591667 | E20: 891.6591667 | F20: 891.6591667 | G20: 891.6591667 | H20: 891.6591667 | I20: 891.6591667 | J20: 891.6591667 | K20: 891.6591667 | L20: 891.6591667 | M20: 891.6591667 | N20: 10699.91
A21: 4600 Miscellaneous Income | B21: 18.2 | C21: 18.2 | D21: 18.2 | E21: 18.2 | F21: 18.2 | G21: 18.2 | H21: 18.2 | I21: 18.2 | J21: 18.2 | K21: 18.2 | L21: 18.2 | M21: 18.2 | N21: 218.4
A22: Total Income | B22: =SUM(B10:B21) -> 13821.0775 | C22: 13821.0775 | D22: 13821.0775 | E22: 13821.0775 | F22: 13821.0775 | G22: 13821.0775 | H22: 13821.0775 | I22: 13821.0775 | J22: 13821.0775 | K22: 13821.0775 | L22: 13821.0775 | M22: 13821.0775 | N22: 165852.93
A23: Cost of Goods Sold
A24: 5005 CSA Add-on Purchases | B24: 747.7941667 | C24: 747.7941667 | D24: 747.7941667 | E24: 747.7941667 | F24: 747.7941667 | G24: 747.7941667 | H24: 747.7941667 | I24: 747.7941667 | J24: 747.7941667 | K24: 747.7941667 | L24: 747.7941667 | M24: 747.7941667 | N24: =sum(B24:M24) -> 8973.53
A25: Total Cost of Goods Sold | B25: 747.7941667 | C25: 747.7941667 | D25: 747.7941667 | E25: 747.7941667 | F25: 747.7941667 | G25: 747.7941667 | H25: 747.7941667 | I25: 747.7941667 | J25: 747.7941667 | K25: 747.7941667 | L25: 747.7941667 | M25: 747.7941667 | N25: 8973.53
A26: Gross Profit | B26: 13073.28333 | C26: 13073.28333 | D26: 13073.28333 | E26: 13073.28333 | F26: 13073.28333 | G26: 13073.28333 | H26: 13073.28333 | I26: 13073.28333 | J26: 13073.28333 | K26: 13073.28333 | L26: 13073.28333 | M26: 13073.28333 | N26: 156879.4
A27: Expenses | B27: 0 | C27: 0 | D27: 0 | E27: 0 | F27: 0 | G27: 0 | H27: 0 | I27: 0 | J27: 0 | K27: 0 | L27: 0 | M27: 0 | N27: 0
A28: 6102 Seedling Production | B28: 178.5433333 | C28: 178.5433333 | D28: 178.5433333 | E28: 178.5433333 | F28: 178.5433333 | G28: 178.5433333 | H28: 178.5433333 | I28: 178.5433333 | J28: 178.5433333 | K28: 178.5433333 | L28: 178.5433333 | M28: 178.5433333 | N28: 2142.52
A29: 6104 Seeds | B29: 301.4141667 | C29: 301.4141667 | D29: 301.4141667 | E29: 301.4141667 | F29: 301.4141667 | G29: 301.4141667 | H29: 301.4141667 | I29: 301.4141667 | J29: 301.4141667 | K29: 301.4141667 | L29: 301.4141667 | M29: 301.4141667 | N29: 3616.97
A30: 6106 Soil Amendments | B30: 296.8333333 | C30: 296.8333333 | D30: 296.8333333 | E30: 296.8333333 | F30: 296.8333333 | G30: 296.8333333 | H30: 296.8333333 | I30: 296.8333333 | J30: 296.8333333 | K30: 296.8333333 | L30: 296.8333333 | M30: 296.8333333 | N30: 3562
A31: 6110 Crop Supplies | B31: 204.9308333 | C31: 204.9308333 | D31: 204.9308333 | E31: 204.9308333 | F31: 204.9308333 | G31: 204.9308333 | H31: 204.9308333 | I31: 204.9308333 | J31: 204.9308333 | K31: 204.9308333 | L31: 204.9308333 | M31: 204.9308333 | N31: 2459.17
A32: 6112 Crop Equipment | B32: 190.2575 | C32: 190.2575 | D32: 190.2575 | E32: 190.2575 | F32: 190.2575 | G32: 190.2575 | H32: 190.2575 | I32: 190.2575 | J32: 190.2575 | K32: 190.2575 | L32: 190.2575 | M32: 190.2575 | N32: 2283.09
A33: 6114 Produce Packaging | B33: 203.0058333 | C33: 203.0058333 | D33: 203.0058333 | E33: 203.0058333 | F33: 203.0058333 | G33: 203.0058333 | H33: 203.0058333 | I33: 203.0058333 | J33: 203.0058333 | K33: 203.0058333 | L33: 203.0058333 | M33: 203.0058333 | N33: 2436.07
A34: 6118 Pest/Disease Control | B34: 65.3925 | C34: 65.3925 | D34: 65.3925 | E34: 65.3925 | F34: 65.3925 | G34: 65.3925 | H34: 65.3925 | I34: 65.3925 | J34: 65.3925 | K34: 65.3925 | L34: 65.3925 | M34: 65.3925 | N34: 784.71
A35: 6210 Chicken Expenses | B35: 4.925833333 | C35: 4.925833333 | D35: 4.925833333 | E35: 4.925833333 | F35: 4.925833333 | G35: 4.925833333 | H35: 4.925833333 | I35: 4.925833333 | J35: 4.925833333 | K35: 4.925833333 | L35: 4.925833333 | M35: 4.925833333 | N35: 59.11
A36: 6212 Chicks and Pullets | B36: 90.25 | C36: 90.25 | D36: 90.25 | E36: 90.25 | F36: 90.25 | G36: 90.25 | H36: 90.25 | I36: 90.25 | J36: 90.25 | K36: 90.25 | L36: 90.25 | M36: 90.25 | N36: 1083
A37: 6214 Chicken Equipment | B37: 76.80166667 | C37: 76.80166667 | D37: 76.80166667 | E37: 76.80166667 | F37: 76.80166667 | G37: 76.80166667 | H37: 76.80166667 | I37: 76.80166667 | J37: 76.80166667 | K37: 76.80166667 | L37: 76.80166667 | M37: 76.80166667 | N37: 921.62
A38: 6216 Chicken Feed | B38: 99.58333333 | C38: 99.58333333 | D38: 99.58333333 | E38: 99.58333333 | F38: 99.58333333 | G38: 99.58333333 | H38: 99.58333333 | I38: 99.58333333 | J38: 99.58333333 | K38: 99.58333333 | L38: 99.58333333 | M38: 99.58333333 | N38: 1195
A39: 6222 Piglets | B39: 64.16666667 | C39: 64.16666667 | D39: 64.16666667 | E39: 64.16666667 | F39: 64.16666667 | G39: 64.16666667 | H39: 64.16666667 | I39: 64.16666667 | J39: 64.16666667 | K39: 64.16666667 | L39: 64.16666667 | M39: 64.16666667 | N39: 770
A40: 6224 Pig Equipment | B40: 0.98 | C40: 0.98 | D40: 0.98 | E40: 0.98 | F40: 0.98 | G40: 0.98 | H40: 0.98 | I40: 0.98 | J40: 0.98 | K40: 0.98 | L40: 0.98 | M40: 0.98 | N40: 11.76
A41: 6226 Pig Feed | B41: 288.2058333 | C41: 288.2058333 | D41: 288.2058333 | E41: 288.2058333 | F41: 288.2058333 | G41: 288.2058333 | H41: 288.2058333 | I41: 288.2058333 | J41: 288.2058333 | K41: 288.2058333 | L41: 288.2058333 | M41: 288.2058333 | N41: 3458.47
A42: 6300 CSA Expenses | B42: 133.3333333 | C42: 133.3333333 | D42: 133.3333333 | E42: 133.3333333 | F42: 133.3333333 | G42: 133.3333333 | H42: 133.3333333 | I42: 133.3333333 | J42: 133.3333333 | K42: 133.3333333 | L42: 133.3333333 | M42: 133.3333333 | N42: 1600
A43: 6902 Wages | B43: 2775.833333 | C43: 2775.833333 | D43: 2775.833333 | E43: 2775.833333 | F43: 2775.833333 | G43: 2775.833333 | H43: 2775.833333 | I43: 2775.833333 | J43: 2775.833333 | K43: 2775.833333 | L43: 2775.833333 | M43: 2775.833333 | N43: 33310
A44: 6904 Payroll Taxes | B44: 219.3883333 | C44: 219.3883333 | D44: 219.3883333 | E44: 219.3883333 | F44: 219.3883333 | G44: 219.3883333 | H44: 219.3883333 | I44: 219.3883333 | J44: 219.3883333 | K44: 219.3883333 | L44: 219.3883333 | M44: 219.3883333 | N44: 2632.66
A45: 6906 Payroll Subscription | B45: 18.285 | C45: 18.285 | D45: 18.285 | E45: 18.285 | F45: 18.285 | G45: 18.285 | H45: 18.285 | I45: 18.285 | J45: 18.285 | K45: 18.285 | L45: 18.285 | M45: 18.285 | N45: 219.42
A46: 7112 Electric-668 Tatro | B46: 181.5833333 | C46: 181.5833333 | D46: 181.5833333 | E46: 181.5833333 | F46: 181.5833333 | G46: 181.5833333 | H46: 181.5833333 | I46: 181.5833333 | J46: 181.5833333 | K46: 181.5833333 | L46: 181.5833333 | M46: 181.5833333 | N46: 2179
A47: 7114 Electric-760 Tatro | B47: 28.0325 | C47: 28.0325 | D47: 28.0325 | E47: 28.0325 | F47: 28.0325 | G47: 28.0325 | H47: 28.0325 | I47: 28.0325 | J47: 28.0325 | K47: 28.0325 | L47: 28.0325 | M47: 28.0325 | N47: 336.39
A48: 7120 Trash and Disposal Services | B48: 44.415 | C48: 44.415 | D48: 44.415 | E48: 44.415 | F48: 44.415 | G48: 44.415 | H48: 44.415 | I48: 44.415 | J48: 44.415 | K48: 44.415 | L48: 44.415 | M48: 44.415 | N48: 532.98
A49: 7122 Propane | B49: 170.25 | C49: 170.25 | D49: 170.25 | E49: 170.25 | F49: 170.25 | G49: 170.25 | H49: 170.25 | I49: 170.25 | J49: 170.25 | K49: 170.25 | L49: 170.25 | M49: 170.25 | N49: 2043
A50: 7124 Internet | B50: 71.83333333 | C50: 71.83333333 | D50: 71.83333333 | E50: 71.83333333 | F50: 71.83333333 | G50: 71.83333333 | H50: 71.83333333 | I50: 71.83333333 | J50: 71.83333333 | K50: 71.83333333 | L50: 71.83333333 | M50: 71.83333333 | N50: 862
A51: 7128 Plowing | B51: 22.91666667 | C51: 22.91666667 | D51: 22.91666667 | E51: 22.91666667 | F51: 22.91666667 | G51: 22.91666667 | H51: 22.91666667 | I51: 22.91666667 | J51: 22.91666667 | K51: 22.91666667 | L51: 22.91666667 | M51: 22.91666667 | N51: 275
A52: 7202 R&M Buildings | B52: 352.29 | C52: 352.29 | D52: 352.29 | E52: 352.29 | F52: 352.29 | G52: 352.29 | H52: 352.29 | I52: 352.29 | J52: 352.29 | K52: 352.29 | L52: 352.29 | M52: 352.29 | N52: 4227.48
A53: 7204 R&M Equipment | B53: 405.2116667 | C53: 405.2116667 | D53: 405.2116667 | E53: 405.2116667 | F53: 405.2116667 | G53: 405.2116667 | H53: 405.2116667 | I53: 405.2116667 | J53: 405.2116667 | K53: 405.2116667 | L53: 405.2116667 | M53: 405.2116667 | N53: 4862.54
A54: 7206 R&M Tractor | B54: 97.96166667 | C54: 97.96166667 | D54: 97.96166667 | E54: 97.96166667 | F54: 97.96166667 | G54: 97.96166667 | H54: 97.96166667 | I54: 97.96166667 | J54: 97.96166667 | K54: 97.96166667 | L54: 97.96166667 | M54: 97.96166667 | N54: 1175.54
A55: 7208 R&M Truck | B55: 2.831666667 | C55: 2.831666667 | D55: 2.831666667 | E55: 2.831666667 | F55: 2.831666667 | G55: 2.831666667 | H55: 2.831666667 | I55: 2.831666667 | J55: 2.831666667 | K55: 2.831666667 | L55: 2.831666667 | M55: 2.831666667 | N55: 33.98
A56: 7212 R&M Animal Housing | B56: 17.08916667 | C56: 17.08916667 | D56: 17.08916667 | E56: 17.08916667 | F56: 17.08916667 | G56: 17.08916667 | H56: 17.08916667 | I56: 17.08916667 | J56: 17.08916667 | K56: 17.08916667 | L56: 17.08916667 | M56: 17.08916667 | N56: 205.07
A57: 7214 R&M Construction & Tools | B57: 31.87916667 | C57: 31.87916667 | D57: 31.87916667 | E57: 31.87916667 | F57: 31.87916667 | G57: 31.87916667 | H57: 31.87916667 | I57: 31.87916667 | J57: 31.87916667 | K57: 31.87916667 | L57: 31.87916667 | M57: 31.87916667 | N57: 382.55
A58: 7218 Cleaning Supplies | B58: 23.10166667 | C58: 23.10166667 | D58: 23.10166667 | E58: 23.10166667 | F58: 23.10166667 | G58: 23.10166667 | H58: 23.10166667 | I58: 23.10166667 | J58: 23.10166667 | K58: 23.10166667 | L58: 23.10166667 | M58: 23.10166667 | N58: 277.22
A59: R&M Van | B59: 4.921666667 | C59: 4.921666667 | D59: 4.921666667 | E59: 4.921666667 | F59: 4.921666667 | G59: 4.921666667 | H59: 4.921666667 | I59: 4.921666667 | J59: 4.921666667 | K59: 4.921666667 | L59: 4.921666667 | M59: 4.921666667 | N59: 59.06
A60: 7252 Fuel - Tractor | B60: 13.03083333 | C60: 13.03083333 | D60: 13.03083333 | E60: 13.03083333 | F60: 13.03083333 | G60: 13.03083333 | H60: 13.03083333 | I60: 13.03083333 | J60: 13.03083333 | K60: 13.03083333 | L60: 13.03083333 | M60: 13.03083333 | N60: 156.37
A61: 7254 Fuel - Gasoline | B61: 107.3541667 | C61: 107.3541667 | D61: 107.3541667 | E61: 107.3541667 | F61: 107.3541667 | G61: 107.3541667 | H61: 107.3541667 | I61: 107.3541667 | J61: 107.3541667 | K61: 107.3541667 | L61: 107.3541667 | M61: 107.3541667 | N61: 1288.25
A62: 7256 Fuel - BCS and small motor | B62: 11.95666667 | C62: 11.95666667 | D62: 11.95666667 | E62: 11.95666667 | F62: 11.95666667 | G62: 11.95666667 | H62: 11.95666667 | I62: 11.95666667 | J62: 11.95666667 | K62: 11.95666667 | L62: 11.95666667 | M62: 11.95666667 | N62: 143.48
A63: 7258 Fuel - Propane | B63: 1.515 | C63: 1.515 | D63: 1.515 | E63: 1.515 | F63: 1.515 | G63: 1.515 | H63: 1.515 | I63: 1.515 | J63: 1.515 | K63: 1.515 | L63: 1.515 | M63: 1.515 | N63: 18.18
A64: 7402 Advertising | B64: 13.55833333 | C64: 13.55833333 | D64: 13.55833333 | E64: 13.55833333 | F64: 13.55833333 | G64: 13.55833333 | H64: 13.55833333 | I64: 13.55833333 | J64: 13.55833333 | K64: 13.55833333 | L64: 13.55833333 | M64: 13.55833333 | N64: 162.7
A65: 7404 Website Costs | B65: 39.37333333 | C65: 39.37333333 | D65: 39.37333333 | E65: 39.37333333 | F65: 39.37333333 | G65: 39.37333333 | H65: 39.37333333 | I65: 39.37333333 | J65: 39.37333333 | K65: 39.37333333 | L65: 39.37333333 | M65: 39.37333333 | N65: 472.48
A66: 7406 Farmers Market Supplies | B66: 23.65 | C66: 23.65 | D66: 23.65 | E66: 23.65 | F66: 23.65 | G66: 23.65 | H66: 23.65 | I66: 23.65 | J66: 23.65 | K66: 23.65 | L66: 23.65 | M66: 23.65 | N66: 283.8
A67: 7502 Accounting | B67: 66.20583333 | C67: 66.20583333 | D67: 66.20583333 | E67: 66.20583333 | F67: 66.20583333 | G67: 66.20583333 | H67: 66.20583333 | I67: 66.20583333 | J67: 66.20583333 | K67: 66.20583333 | L67: 66.20583333 | M67: 66.20583333 | N67: 794.47
A68: 7506 Subcontractors | B68: 15 | C68: 15 | D68: 15 | E68: 15 | F68: 15 | G68: 15 | H68: 15 | I68: 15 | J68: 15 | K68: 15 | L68: 15 | M68: 15 | N68: 180
A69: 7508 Farm Sitting | B69: 34.16666667 | C69: 34.16666667 | D69: 34.16666667 | E69: 34.16666667 | F69: 34.16666667 | G69: 34.16666667 | H69: 34.16666667 | I69: 34.16666667 | J69: 34.16666667 | K69: 34.16666667 | L69: 34.16666667 | M69: 34.16666667 | N69: 410
A70: 7602 Workmans Comp | B70: 26.91666667 | C70: 26.91666667 | D70: 26.91666667 | E70: 26.91666667 | F70: 26.91666667 | G70: 26.91666667 | H70: 26.91666667 | I70: 26.91666667 | J70: 26.91666667 | K70: 26.91666667 | L70: 26.91666667 | M70: 26.91666667 | N70: 323
A71: 7604 Liability | B71: 149.4025 | C71: 149.4025 | D71: 149.4025 | E71: 149.4025 | F71: 149.4025 | G71: 149.4025 | H71: 149.4025 | I71: 149.4025 | J71: 149.4025 | K71: 149.4025 | L71: 149.4025 | M71: 149.4025 | N71: 1792.83
A72: 7606 Auto | B72: 65.31666667 | C72: 65.31666667 | D72: 65.31666667 | E72: 65.31666667 | F72: 65.31666667 | G72: 65.31666667 | H72: 65.31666667 | I72: 65.31666667 | J72: 65.31666667 | K72: 65.31666667 | L72: 65.31666667 | M72: 65.31666667 | N72: 783.8
A73: 7800 Office Supplies | B73: 75.16666667 | C73: 75.16666667 | D73: 75.16666667 | E73: 75.16666667 | F73: 75.16666667 | G73: 75.16666667 | H73: 75.16666667 | I73: 75.16666667 | J73: 75.16666667 | K73: 75.16666667 | L73: 75.16666667 | M73: 75.16666667 | N73: 902
A74: 7802 Printing and Copying | B74: 18.0225 | C74: 18.0225 | D74: 18.0225 | E74: 18.0225 | F74: 18.0225 | G74: 18.0225 | H74: 18.0225 | I74: 18.0225 | J74: 18.0225 | K74: 18.0225 | L74: 18.0225 | M74: 18.0225 | N74: 216.27
A75: 7806 Postage and Delivery | B75: 7.433333333 | C75: 7.433333333 | D75: 7.433333333 | E75: 7.433333333 | F75: 7.433333333 | G75: 7.433333333 | H75: 7.433333333 | I75: 7.433333333 | J75: 7.433333333 | K75: 7.433333333 | L75: 7.433333333 | M75: 7.433333333 | N75: 89.2
A76: 7808 Dues and Subscriptions | B76: 58.33333333 | C76: 58.33333333 | D76: 58.33333333 | E76: 58.33333333 | F76: 58.33333333 | G76: 58.33333333 | H76: 58.33333333 | I76: 58.33333333 | J76: 58.33333333 | K76: 58.33333333 | L76: 58.33333333 | M76: 58.33333333 | N76: 700
A77: 7810 Business Licenses and Permits | B77: 24.56916667 | C77: 24.56916667 | D77: 24.56916667 | E77: 24.56916667 | F77: 24.56916667 | G77: 24.56916667 | H77: 24.56916667 | I77: 24.56916667 | J77: 24.56916667 | K77: 24.56916667 | L77: 24.56916667 | M77: 24.56916667 | N77: 294.83
A78: 7820 Labor Expenses | B78: 5.249166667 | C78: 5.249166667 | D78: 5.249166667 | E78: 5.249166667 | F78: 5.249166667 | G78: 5.249166667 | H78: 5.249166667 | I78: 5.249166667 | J78: 5.249166667 | K78: 5.249166667 | L78: 5.249166667 | M78: 5.249166667 | N78: 62.99
A79: 7824 Professional Development | B79: 78 | C79: 78 | D79: 78 | E79: 78 | F79: 78 | G79: 78 | H79: 78 | I79: 78 | J79: 78 | K79: 78 | L79: 78 | M79: 78 | N79: 936
A80: 7892 Online Payment Fees | B80: 58.97916667 | C80: 58.97916667 | D80: 58.97916667 | E80: 58.97916667 | F80: 58.97916667 | G80: 58.97916667 | H80: 58.97916667 | I80: 58.97916667 | J80: 58.97916667 | K80: 58.97916667 | L80: 58.97916667 | M80: 58.97916667 | N80: 707.75
A81: 7932 Interest Expense - VACC | B81: 1378.9725 | C81: 1378.9725 | D81: 1378.9725 | E81: 1378.9725 | F81: 1378.9725 | G81: 1378.9725 | H81: 1378.9725 | I81: 1378.9725 | J81: 1378.9725 | K81: 1378.9725 | L81: 1378.9725 | M81: 1378.9725 | N81: 16547.67
A82: 7934 Interest Expense - Van | B82: 106.1425 | C82: 106.1425 | D82: 106.1425 | E82: 106.1425 | F82: 106.1425 | G82: 106.1425 | H82: 106.1425 | I82: 106.1425 | J82: 106.1425 | K82: 106.1425 | L82: 106.1425 | M82: 106.1425 | N82: 1273.71
A83: 7942 VT Partnership Tax Paid | B83: 20.83333333 | C83: 20.83333333 | D83: 20.83333333 | E83: 20.83333333 | F83: 20.83333333 | G83: 20.83333333 | H83: 20.83333333 | I83: 20.83333333 | J83: 20.83333333 | K83: 20.83333333 | L83: 20.83333333 | M83: 20.83333333 | N83: 250
A84: 7944 Property Tax Paid | B84: 444.9775 | C84: 444.9775 | D84: 444.9775 | E84: 444.9775 | F84: 444.9775 | G84: 444.9775 | H84: 444.9775 | I84: 444.9775 | J84: 444.9775 | K84: 444.9775 | L84: 444.9775 | M84: 444.9775 | N84: 5339.73
A85: Reimbursements | B85: 3.721666667 | C85: 3.721666667 | D85: 3.721666667 | E85: 3.721666667 | F85: 3.721666667 | G85: 3.721666667 | H85: 3.721666667 | I85: 3.721666667 | J85: 3.721666667 | K85: 3.721666667 | L85: 3.721666667 | M85: 3.721666667 | N85: 44.66
A86: Unapplied Cash Bill Payment Expense | B86: 0 | C86: 0 | D86: 0 | E86: 0 | F86: 0 | G86: 0 | H86: 0 | I86: 0 | J86: 0 | K86: 0 | L86: 0 | M86: 0 | N86: 0
A87: Total Expenses | B87: =SUM(B28:B86) -> 9514.295833 | C87: 9514.295833 | D87: 9514.295833 | E87: 9514.295833 | F87: 9514.295833 | G87: 9514.295833 | H87: 9514.295833 | I87: 9514.295833 | J87: 9514.295833 | K87: 9514.295833 | L87: 9514.295833 | M87: 9514.295833 | N87: 114171.55
A88: Net Operating Income | B88: =(B26)-(B87) -> 3558.9875 | C88: 3558.9875 | D88: 3558.9875 | E88: 3558.9875 | F88: 3558.9875 | G88: 3558.9875 | H88: 3558.9875 | I88: 3558.9875 | J88: 3558.9875 | K88: 3558.9875 | L88: 3558.9875 | M88: 3558.9875 | N88: 42707.85
A89: Other Expenses | N89: 0
A90: Loan repayments | B90: 200 | C90: 200 | D90: 200 | E90: 200 | F90: 200 | G90: 200 | H90: 200 | I90: 200 | J90: 200 | K90: 200 | L90: 200 | M90: 200 | N90: 2400
A91: Owners' Draw | B91: 1800 | C91: 1800 | D91: 1800 | E91: 1800 | F91: 1800 | G91: 1800 | H91: 1800 | I91: 1800 | J91: 1800 | K91: 1800 | L91: 1800 | M91: 1800 | N91: 21600
A92: Infrastructure Investments | N92: 0
A93: 9999 Ask My Accountant | N93: 0
A94: Total Other Expenses | B94: =Sum(B90:B93) -> 2000 | C94: 2000 | D94: 2000 | E94: 2000 | F94: 2000 | G94: 2000 | H94: 2000 | I94: 2000 | J94: 2000 | K94: 2000 | L94: 2000 | M94: 2000 | N94: 24000
A95: Net Other Income | B95: =(0)-(B94) -> -2000 | C95: -2000 | D95: -2000 | E95: -2000 | F95: -2000 | G95: -2000 | H95: -2000 | I95: -2000 | J95: -2000 | K95: -2000 | L95: -2000 | M95: -2000 | N95: -24000
A96: Net Income | B96: =(B88)+(B95) -> 1558.9875 | C96: 1558.9875 | D96: 1558.9875 | E96: 1558.9875 | F96: 1558.9875 | G96: 1558.9875 | H96: 1558.9875 | I96: 1558.9875 | J96: 1558.9875 | K96: 1558.9875 | L96: 1558.9875 | M96: 1558.9875 | N96: 18707.85
A100: Wednesday, Nov 20, 2019 11:24:51 AM GMT-8 - Cash Basis

Sheet Optional - 5 Year Projections
A1: Footprint Farm, LLC
A2: Profit and Loss
A3: January 1 - November 20, 2019
A5: Net income --> | B5: =B93 -> 42068.88 | C5: 46792.83 | D5: 48837.18 | E5: 53837.18 | F5: 53837.18 | G5: 53837.18
B7: 2019 | C7: 2020 | D7: 2021 | E7: 2022 | F7: 2023 | G7: 2024
A8: Income
A9: 4000 Income - Product Sales
A10: 4102 CSA Sales | B10: 47922.05 | C10: 48000 | D10: 50000 | E10: 50000 | F10: 50000 | G10: 50000
A11: 4104 Wholesale Produce Sales | B11: 58378.32 | C11: 60000 | D11: 60000 | E11: 65000 | F11: 65000 | G11: 65000
A12: 4106 Farmers Market Produce Sales | B12: 37166.17 | C12: 40000 | D12: 40000 | E12: 40000 | F12: 40000 | G12: 40000
A13: 4204 CSA Eggs | B13: =3748.43 -> 3748.43
A14: 4206 FM Eggs | B14: =1151 -> 1151
A15: 4302 Pork Sales | B15: 4255 | C15: =900*7 -> 6300 | D15: 6300 | E15: 6300 | F15: 6300 | G15: 6300
A16: 4304 Stew Hens | B16: =912 -> 912
A17: 4702 Merchandise Sales | B17: =155.65 -> 155.65 | C17: 155.65 | D17: 200 | E17: 200 | F17: 200 | G17: 200
A18: 4504 Farm Tours/Special Event | B18: =925 -> 925 | C18: 200 | D18: 200 | E18: 200 | F18: 200 | G18: 200
A19: 4506 Greenhouse Rental | B19: =321 -> 321 | C19: 300 | D19: 300 | E19: 300 | F19: 300 | G19: 300
A20: 4508 CSA Add-ons | B20: 10699.91 | C20: 11000 | D20: 11000 | E20: 11000 | F20: 11000 | G20: 11000 | H20: <--make budget for add-ons
A21: 4600 Miscellaneous Income | B21: =218.4 -> 218.4
A22: Total Income | B22: =SUM(B10:B21) -> 165852.93 | C22: 165955.65 | D22: 168000 | E22: 173000 | F22: 173000 | G22: 173000
A23: Cost of Goods Sold
A24: 5005 CSA Add-on Purchases | B24: =8973.53 -> 8973.53 | C24: =C20*0.75 -> 8250 | D24: 8250 | E24: 8250 | F24: 8250 | G24: 8250
A25: Total Cost of Goods Sold | B25: =B24 -> 8973.53 | C25: 8250 | D25: 8250 | E25: 8250 | F25: 8250 | G25: 8250
A26: Gross Profit | B26: =(B22)-(B25) -> 156879.4 | C26: 157705.65 | D26: 159750 | E26: 164750 | F26: 164750 | G26: 164750
A27: Expenses
A28: 6102 Seedling Production | B28: =2142.52 -> 2142.52 | C28: 2142.52 | D28: 2142.52 | E28: 2142.52 | F28: 2142.52 | G28: 2142.52
A29: 6104 Seeds | B29: =3616.97 -> 3616.97 | C29: 3616.97 | D29: 3616.97 | E29: 3616.97 | F29: 3616.97 | G29: 3616.97
A30: 6106 Soil Amendments | B30: 3562 | C30: 3562 | D30: 3562 | E30: 3562 | F30: 3562 | G30: 3562
A31: 6110 Crop Supplies | B31: =2459.17 -> 2459.17 | C31: 2459.17 | D31: 2459.17 | E31: 2459.17 | F31: 2459.17 | G31: 2459.17
A32: 6112 Crop Equipment | B32: =2283.09 -> 2283.09 | C32: 2283.09 | D32: 2283.09 | E32: 2283.09 | F32: 2283.09 | G32: 2283.09
A33: 6114 Produce Packaging | B33: =2436.07 -> 2436.07 | C33: 2436.07 | D33: 2436.07 | E33: 2436.07 | F33: 2436.07 | G33: 2436.07
A34: 6118 Pest/Disease Control | B34: =784.71 -> 784.71 | C34: 784.71 | D34: 784.71 | E34: 784.71 | F34: 784.71 | G34: 784.71
A35: 6210 Chicken Expenses | B35: =59.11 -> 59.11
A36: 6212 Chicks and Pullets | B36: =1083 -> 1083
A37: 6214 Chicken Equipment | B37: =921.62 -> 921.62
A38: 6216 Chicken Feed | B38: 1195
A39: 6222 Piglets | B39: =770 -> 770 | C39: 770 | D39: 770 | E39: 770 | F39: 770 | G39: 770
A40: 6224 Pig Equipment | B40: =11.76 -> 11.76 | C40: 11.76 | D40: 11.76 | E40: 11.76 | F40: 11.76 | G40: 11.76
A41: 6226 Pig Feed | B41: =3458.47 -> 3458.47 | C41: 3458.47 | D41: 3458.47 | E41: 3458.47 | F41: 3458.47 | G41: 3458.47
A42: 6300 CSA Expenses | B42: 1600 | C42: 1600 | D42: 1600 | E42: 1600 | F42: 1600 | G42: 1600
A43: 6902 Wages | B43: 33310 | C43: 33310 | D43: 33310 | E43: 33310 | F43: 33310 | G43: 33310
A44: 6904 Payroll Taxes | B44: =1568.66+1064 -> 2632.66 | C44: 2632.66 | D44: 2632.66 | E44: 2632.66 | F44: 2632.66 | G44: 2632.66
A45: 6906 Payroll Subscription | B45: =219.42 -> 219.42 | C45: 219.42 | D45: 219.42 | E45: 219.42 | F45: 219.42 | G45: 219.42
A46: 7112 Electric-668 Tatro | B46: 2179 | C46: 2179 | D46: 2179 | E46: 2179 | F46: 2179 | G46: 2179
A47: 7114 Electric-760 Tatro | B47: =336.39 -> 336.39 | C47: 336.39 | D47: 336.39 | E47: 336.39 | F47: 336.39 | G47: 336.39
A48: 7120 Trash and Disposal Services | B48: =532.98 -> 532.98 | C48: 532.98 | D48: 532.98 | E48: 532.98 | F48: 532.98 | G48: 532.98
A49: 7122 Propane | B49: 2043 | C49: 2043 | D49: 2043 | E49: 2043 | F49: 2043 | G49: 2043
A50: 7124 Internet | B50: 862 | C50: 862 | D50: 862 | E50: 862 | F50: 862 | G50: 862
A51: 7128 Plowing | B51: =275 -> 275 | C51: 275 | D51: 275 | E51: 275 | F51: 275 | G51: 275
A52: 7202 R&M Buildings | B52: 4227.48 | C52: 4227.48 | D52: 4227.48 | E52: 4227.48 | F52: 4227.48 | G52: 4227.48
A53: 7204 R&M Equipment | B53: 4862.54 | C53: 4862.54 | D53: 4862.54 | E53: 4862.54 | F53: 4862.54 | G53: 4862.54
A54: 7206 R&M Tractor | B54: =1175.54 -> 1175.54 | C54: 1175.54 | D54: 1175.54 | E54: 1175.54 | F54: 1175.54 | G54: 1175.54
A55: 7208 R&M Truck | B55: =33.98 -> 33.98 | C55: 33.98 | D55: 33.98 | E55: 33.98 | F55: 33.98 | G55: 33.98
A56: 7212 R&M Animal Housing | B56: =205.07 -> 205.07 | C56: 205.07 | D56: 205.07 | E56: 205.07 | F56: 205.07 | G56: 205.07
A57: 7214 R&M Construction & Tools | B57: =382.55 -> 382.55 | C57: 382.55 | D57: 382.55 | E57: 382.55 | F57: 382.55 | G57: 382.55
A58: 7218 Cleaning Supplies | B58: 277.22 | C58: 277.22 | D58: 277.22 | E58: 277.22 | F58: 277.22 | G58: 277.22
A59: R&M Van | B59: =59.06 -> 59.06 | C59: 59.06 | D59: 59.06 | E59: 59.06 | F59: 59.06 | G59: 59.06
A60: 7252 Fuel - Tractor | B60: =156.37 -> 156.37 | C60: 156.37 | D60: 156.37 | E60: 156.37 | F60: 156.37 | G60: 156.37
A61: 7254 Fuel - Gasoline | B61: 1288.25 | C61: 1288.25 | D61: 1288.25 | E61: 1288.25 | F61: 1288.25 | G61: 1288.25
A62: 7256 Fuel - BCS and small motor | B62: 143.48 | C62: 143.48 | D62: 143.48 | E62: 143.48 | F62: 143.48 | G62: 143.48
A63: 7258 Fuel - Propane | B63: =18.18 -> 18.18 | C63: 18.18 | D63: 18.18 | E63: 18.18 | F63: 18.18 | G63: 18.18
A64: 7402 Advertising | B64: =162.7 -> 162.7 | C64: 162.7 | D64: 162.7 | E64: 162.7 | F64: 162.7 | G64: 162.7
A65: 7404 Website Costs | B65: =472.48 -> 472.48 | C65: 472.48 | D65: 472.48 | E65: 472.48 | F65: 472.48 | G65: 472.48
A66: 7406 Farmers Market Supplies | B66: =283.8 -> 283.8 | C66: 283.8 | D66: 283.8 | E66: 283.8 | F66: 283.8 | G66: 283.8
A67: 7502 Accounting | B67: =794.47 -> 794.47 | C67: 794.47 | D67: 794.47 | E67: 794.47 | F67: 794.47 | G67: 794.47
A68: 7506 Subcontractors | B68: =180 -> 180 | C68: 180 | D68: 180 | E68: 180 | F68: 180 | G68: 180
A69: 7508 Farm Sitting | B69: =410 -> 410 | C69: 410 | D69: 410 | E69: 410 | F69: 410 | G69: 410
A70: 7602 Workmans Comp | B70: =323 -> 323 | C70: 323 | D70: 323 | E70: 323 | F70: 323 | G70: 323
A71: 7604 Liability | B71: 1792.83 | C71: 1792.83 | D71: 1792.83 | E71: 1792.83 | F71: 1792.83 | G71: 1792.83
A72: 7606 Auto | B72: =783.8 -> 783.8 | C72: 783.8 | D72: 783.8 | E72: 783.8 | F72: 783.8 | G72: 783.8
A73: 7800 Office Supplies | B73: 902 | C73: 902 | D73: 902 | E73: 902 | F73: 902 | G73: 902
A74: 7802 Printing and Copying | B74: =216.27 -> 216.27 | C74: 216.27 | D74: 216.27 | E74: 216.27 | F74: 216.27 | G74: 216.27
A75: 7806 Postage and Delivery | B75: =89.2 -> 89.2 | C75: 89.2 | D75: 89.2 | E75: 89.2 | F75: 89.2 | G75: 89.2
A76: 7808 Dues and Subscriptions | B76: 700 | C76: 700 | D76: 700 | E76: 700 | F76: 700 | G76: 700
A77: 7810 Business Licenses and Permits | B77: =294.83 -> 294.83 | C77: 294.83 | D77: 294.83 | E77: 294.83 | F77: 294.83 | G77: 294.83
A78: 7820 Labor Expenses | B78: =62.99 -> 62.99 | C78: 62.99 | D78: 62.99 | E78: 62.99 | F78: 62.99 | G78: 62.99
A79: 7824 Professional Development | B79: 936 | C79: 936 | D79: 936 | E79: 936 | F79: 936 | G79: 936
A80: 7892 Online Payment Fees | B80: 707.75 | C80: 707.75 | D80: 707.75 | E80: 707.75 | F80: 707.75 | G80: 707.75
A81: 7932 Interest Expense - VACC | B81: 16547.67 | C81: 16547.67 | D81: 16547.67 | E81: 16547.67 | F81: 16547.67 | G81: 16547.67
A82: 7934 Interest Expense - Van | B82: 1273.71 | C82: 1273.71 | D82: 1273.71 | E82: 1273.71 | F82: 1273.71 | G82: 1273.71
A83: 7942 VT Partnership Tax Paid | B83: =250 -> 250 | C83: 250 | D83: 250 | E83: 250 | F83: 250 | G83: 250
A84: 7944 Property Tax Paid | B84: =5339.73 -> 5339.73 | C84: 5339.73 | D84: 5339.73 | E84: 5339.73 | F84: 5339.73 | G84: 5339.73
A85: Reimbursements | B85: =44.66 -> 44.66 | C85: 44.66 | D85: 44.66 | E85: 44.66 | F85: 44.66 | G85: 44.66
A86: Unapplied Cash Bill Payment Expense | B86: =0 -> 0 | C86: 0 | D86: 0 | E86: 0 | F86: 0 | G86: 0
A87: Total Expenses | B87: =SUM(B28:B86) -> 114171.55 | C87: 110912.82 | D87: 110912.82 | E87: 110912.82 | F87: 110912.82 | G87: 110912.82
A88: Net Operating Income | B88: =(B26)-(B87) -> 42707.85 | C88: 46792.83 | D88: 48837.18 | E88: 53837.18 | F88: 53837.18 | G88: 53837.18
A89: Other Expenses
A90: 9999 Ask My Accountant | B90: 638.97
A91: Total Other Expenses | B91: =B90 -> 638.97
A92: Net Other Income | B92: =(0)-(B91) -> -638.97 | C92: 0 | D92: 0 | E92: 0 | F92: 0 | G92: 0
A93: Net Income | B93: =(B88)+(B92) -> 42068.88 | C93: 46792.83 | D93: 48837.18 | E93: 53837.18 | F93: 53837.18 | G93: 53837.18
A97: Wednesday, Nov 20, 2019 11:24:51 AM GMT-8 - Cash Basis
